bitfinex/quotes_SOLUSD_20241016
["timestamp","ask_amount","ask_price","bid_price","bid_amount"]
[1729105456937,30.0,154.24,154.23,2.990944]
[1729105457452,30.0,154.24,154.23,18.825244]
[1729105457927,6.4813,154.29,154.23,18.825244]
[1729105461227,43.776884,154.31,154.23,18.825244]
[1729105461532,6.4811,154.3,154.23,18.825244]
[1729105462756,6.4813,154.29,154.23,18.825244]
[1729105463656,6.4809,154.3,154.23,18.825244]
[1729105466055,6.4813,154.29,154.23,18.825244]
[1729105468053,6.4809,154.3,154.23,18.825244]
[1729105470666,6.4813,154.29,154.23,18.825244]
[1729105472665,6.4817,154.28,154.23,18.825244]
[1729105472851,6.4817,154.28,154.23,2.990944]
[1729105476255,6.4814,154.29,154.23,2.990944]
[1729105477964,4.81441887,154.28,154.23,2.990944]
[1729105478271,6.4814,154.29,154.23,2.990944]
[1729105478478,4.81346465,154.28,154.23,2.990944]
[1729105478655,6.4814,154.29,154.23,2.990944]
[1729105478859,4.81358886,154.28,154.23,2.990944]
[1729105479062,6.4814,154.29,154.23,2.990944]
[1729105479264,4.81311363,154.28,154.23,2.990944]
[1729105479464,6.4814,154.29,154.23,2.990944]
[1729105479663,4.81320878,154.28,154.23,2.990944]
[1729105479867,6.4814,154.29,154.23,2.990944]
[1729105480080,4.813146,154.28,154.23,2.990944]
[1729105480274,6.4814,154.29,154.23,2.990944]
[1729105480479,4.81178965,154.28,154.23,2.990944]
[1729105480774,6.4814,154.29,154.23,2.990944]
[1729105481073,4.81184764,154.28,154.23,2.990944]
[1729105481374,6.4814,154.29,154.23,2.990944]
[1729105481680,4.81089633,154.28,154.23,2.990944]
[1729105481976,6.4814,154.29,154.23,2.990944]
[1729105484261,6.4817,154.28,154.23,2.990944]
[1729105488182,43.776884,154.31,154.23,2.990944]
[1729105488183,15.6197,154.29,154.23,2.990944]
[1729105488392,36.4834,154.24,154.23,2.990944]
[1729105492082,30.0,154.24,154.23,2.990944]
[1729105493279,56.4834,154.24,154.23,2.990944]
[1729105493486,36.4834,154.24,154.23,2.990944]
[1729105497670,30.0,154.24,154.23,2.990944]
[1729105499185,6.4824,154.27,154.23,2.990944]
[1729105501768,43.776884,154.28,154.23,2.990944]
[1729105501985,6.4834,154.24,154.23,2.990944]
[1729105503992,36.4834,154.24,154.23,2.990944]
[1729105506094,30.0,154.24,154.23,2.990944]
[1729105507291,36.4834,154.24,154.23,2.990944]
[1729105507922,30.0,154.24,154.23,2.990944]
[1729105508593,30.0,154.24,154.23,2.5356334]
[1729105510588,36.4834,154.24,154.23,2.5356334]
[1729105519424,6.4834,154.24,154.23,2.5356334]
[1729105522104,13.4226695,154.29,154.23,2.5356334]
[1729105522302,12.51246491,154.28,154.23,2.5356334]
[1729105522504,6.4809,154.3,154.23,2.5356334]
[1729105522704,12.51352927,154.29,154.23,2.5356334]
[1729105522916,4.81289587,154.28,154.23,2.5356334]
[1729105523215,6.4805,154.31,154.23,2.5356334]
[1729105523404,4.81219537,154.3,154.23,2.5356334]
[1729105523606,4.81219537,154.29,154.23,2.5356334]
[1729105523801,6.4805,154.31,154.23,2.5356334]
[1729105524025,4.81255646,154.3,154.23,9.0193334]
[1729105524231,8.01043063,154.33,154.23,9.0193334]
[1729105524232,6.48,154.33,154.24,6.4833]
[1729105524522,4.81289434,154.32,154.25,13.0694]
[1729105524826,4.81289434,154.31,154.25,13.0694]
[1729105525017,6.4793,154.34,154.25,13.1694]
[1729105525208,12.50996129,154.33,154.25,13.1694]
[1729105525403,12.50996129,154.33,154.25,6.5865]
[1729105525404,6.4803,154.32,154.25,6.5865]
[1729105530230,23.776884,154.35,154.25,6.5865]
[1729105530532,6.4805,154.31,154.25,6.5865]
[1729105533112,6.4801,154.32,154.25,6.5865]
[1729105536021,6.4796,154.33,154.25,13.0694]
[1729105537015,6.4796,154.33,154.25,6.5865]
[1729105538138,6.4801,154.32,154.25,6.5865]
[1729105538634,6.4807,154.31,154.25,6.5865]
[1729105546211,6.4812,154.3,154.25,6.5865]
[1729105546423,6.4812,154.3,154.23,22.5356334]
[1729105550135,23.776884,154.34,154.23,22.5356334]
[1729105550320,6.4803,154.32,154.24,6.4833]
[1729105550522,22.46501936,154.37,154.27,15.8164]
[1729105550828,15.7125,154.37,154.28,20.1]
[1729105551146,6.4778,154.38,154.29,6.5811]
[1729105551343,32.7459,154.41,154.29,6.4811]
[1729105551543,6.4779,154.37,154.29,6.4811]
[1729105553026,32.7459,154.41,154.28,20.0]
[1729105553242,23.776884,154.38,154.28,20.0]
[1729105553939,6.4792,154.34,154.28,20.0]
[1729105555632,6.4792,154.34,154.27,15.7164]
[1729105558129,6.4798,154.33,154.27,15.7164]
[1729105561127,6.4798,154.33,154.26,6.4076]
[1729105561652,6.4801,154.32,154.26,6.4076]
[1729105564867,6.4801,154.32,154.25,20.0]
[1729105570956,6.4801,154.32,154.25,6.4829]
[1729105574340,6.4797,154.33,154.25,6.4829]
[1729105574541,8.02820841,154.37,154.28,0.1]
[1729105574762,8.02820841,154.37,154.29,6.4811]
[1729105574763,12.52065615,154.36,154.29,6.4811]
[1729105574946,12.52065615,154.35,154.3,6.4807]
[1729105575270,8.02820841,154.4,154.3,0.1]
[1729105575463,18.99819459,154.39,154.31,6.4804]
[1729105575669,12.52109459,154.38,154.31,6.4804]
[1729105575962,4.81580561,154.37,154.31,6.4804]
[1729105576265,31.7226,154.43,154.29,20.1]
[1729105576266,6.4776,154.38,154.29,20.1]
[1729105576567,4.81503277,154.37,154.29,20.1]
[1729105576865,6.4779,154.37,154.29,20.0]
[1729105577247,6.4776,154.38,154.29,20.1]
[1729105577446,4.81437981,154.37,154.29,20.1]
[1729105577645,6.4776,154.38,154.29,20.1]
[1729105577841,4.81559317,154.37,154.29,20.1]
[1729105578043,6.4776,154.38,154.29,20.1]
[1729105578241,4.81360653,154.37,154.29,20.1]
[1729105578441,6.4776,154.38,154.29,20.1]
[1729105578659,4.81330878,154.37,154.29,20.1]
[1729105578860,6.4776,154.38,154.29,20.1]
[1729105579163,4.81295573,154.37,154.29,20.1]
[1729105579356,6.4776,154.38,154.29,20.1]
[1729105579661,4.81243437,154.37,154.3,0.1]
[1729105579842,6.4776,154.38,154.3,0.1]
[1729105580042,4.81217484,154.37,154.3,0.1]
[1729105580342,6.4776,154.38,154.3,0.1]
[1729105580543,4.81135121,154.37,154.3,0.1]
[1729105580765,6.4776,154.38,154.3,0.1]
[1729105580954,4.81135,154.37,154.29,20.0]
[1729105581262,6.4776,154.38,154.29,20.0]
[1729105581465,4.81092616,154.37,154.29,20.1]
[1729105581671,6.4776,154.38,154.29,20.0]
[1729105581845,4.81091025,154.37,154.29,20.0]
[1729105582047,6.4776,154.38,154.29,20.1]
[1729105582246,4.81116598,154.37,154.29,20.0]
[1729105582452,6.4776,154.38,154.29,20.0]
[1729105582650,4.81074712,154.37,154.29,20.0]
[1729105582873,6.4776,154.38,154.29,20.0]
[1729105583070,4.81086434,154.37,154.29,20.0]
[1729105583271,6.4776,154.38,154.29,20.0]
[1729105583558,4.81059255,154.37,154.3,0.1]
[1729105583773,6.4767,154.4,154.3,0.1]
[1729105583970,12.50779057,154.39,154.3,0.1]
[1729105584165,4.81068868,154.38,154.3,0.1]
[1729105584361,23.776884,154.41,154.29,20.1]
[1729105584554,6.4771,154.39,154.29,20.1]
[1729105584757,4.81026453,154.38,154.3,0.1]
[1729105584958,6.4771,154.39,154.3,0.1]
[1729105585271,4.81020552,154.38,154.3,0.1]
[1729105585473,6.4771,154.39,154.3,0.1]
[1729105585676,4.8098629,154.38,154.3,0.1]
[1729105585975,6.4771,154.39,154.3,0.1]
[1729105586176,4.80990327,154.38,154.3,0.1]
[1729105586378,6.4771,154.39,154.3,0.1]
[1729105586567,4.80979872,154.38,154.3,0.1]
[1729105586750,6.4771,154.39,154.3,0.1]
[1729105586954,4.80976531,154.38,154.3,0.1]
[1729105587154,6.4771,154.39,154.3,0.1]
[1729105587356,4.80973147,154.38,154.29,20.1]
[1729105587680,6.4771,154.39,154.29,20.1]
[1729105587882,4.80972038,154.38,154.29,20.1]
[1729105588050,6.4771,154.39,154.29,20.1]
[1729105588380,4.81007747,154.38,154.29,20.1]
[1729105588591,6.4771,154.39,154.29,20.1]
[1729105588767,4.81005963,154.38,154.29,20.1]
[1729105588957,6.4771,154.39,154.29,20.1]
[1729105589292,16.6411,154.39,154.29,20.0]
[1729105589453,6.4789,154.35,154.29,20.0]
[1729105598973,6.4795,154.34,154.26,13.23436973]
[1729105599276,11.29446742,154.33,154.26,6.4824]
[1729105599478,6.4797,154.33,154.26,6.4824]
[1729105599858,6.4797,154.33,154.23,31.28995952]
[1729105600193,16.6411,154.39,154.23,31.28995952]
[1729105600194,11.2942471,154.32,154.24,20.0]
[1729105600387,6.4802,154.32,154.24,20.0]
[1729105600580,6.4807,154.31,154.24,26.4831]
[1729105600883,6.481,154.3,154.24,20.0]
[1729105601191,6.481,154.3,154.23,37.67365952]
[1729105601560,6.4805,154.31,154.23,31.18995952]
[1729105601773,6.4805,154.31,154.24,6.4832]
[1729105613174,16.1982,154.34,154.24,6.4832]
[1729105613486,4.80770445,154.33,154.24,6.4832]
[1729105613684,16.1982,154.34,154.24,6.4832]
[1729105613884,4.80774958,154.33,154.24,0.1]
[1729105614086,21.8486,154.35,154.26,6.4825]
[1729105614294,12.49938854,154.34,154.26,6.4825]
[1729105614478,4.80745713,154.33,154.26,6.4825]
[1729105614804,21.8486,154.35,154.26,6.4825]
[1729105615094,6.4798,154.33,154.26,6.4825]
[1729105615600,15.5249,154.35,154.26,0.1]
[1729105615890,27.7633,154.39,154.31,6.4803]
[1729105616096,4.80852804,154.38,154.31,6.4803]
[1729105616270,4.80852804,154.37,154.32,6.4797]
[1729105616469,21.6944,154.39,154.32,6.4797]
[1729105616669,4.81020912,154.38,154.32,6.4797]
[1729105616979,15.2172,154.39,154.32,6.4797]
[1729105617171,4.8116254,154.38,154.32,6.4797]
[1729105617369,15.2172,154.39,154.32,6.4797]
[1729105617572,4.81198704,154.38,154.32,6.4797]
[1729105617801,15.2172,154.39,154.32,6.4797]
[1729105617972,4.8121049,154.38,154.32,6.4797]
[1729105618172,15.2172,154.39,154.32,6.4797]
[1729105618372,4.81191361,154.38,154.32,6.4797]
[1729105618603,15.2172,154.39,154.32,6.4797]
[1729105618792,4.81195048,154.38,154.32,6.4797]
[1729105618996,15.2172,154.39,154.32,6.4797]
[1729105619181,4.81194835,154.38,154.32,6.4797]
[1729105619498,15.2172,154.39,154.32,6.4797]
[1729105619700,4.81178184,154.38,154.32,6.4797]
[1729105619992,15.2172,154.39,154.32,6.4797]
[1729105620215,4.81180873,154.38,154.3,20.0]
[1729105620399,6.4783,154.37,154.3,20.0]
[1729105620603,6.479,154.35,154.3,20.0]
[1729105620778,23.776884,154.38,154.3,20.0]
[1729105620983,6.4784,154.36,154.3,20.0]
[1729105621178,6.4788,154.35,154.3,20.0]
[1729105621801,6.4784,154.36,154.3,20.0]
[1729105629508,15.2172,154.39,154.3,20.1]
[1729105629719,4.8100174,154.38,154.33,6.4795]
[1729105629886,6.4768,154.4,154.33,6.4795]
[1729105630083,4.81022415,154.39,154.33,6.4795]
[1729105630309,4.81022415,154.38,154.33,6.4795]
[1729105630497,6.4768,154.4,154.33,6.4795]
[1729105630689,11.28577487,154.39,154.32,6.4798]
[1729105630898,4.80867487,154.38,154.32,6.4798]
[1729105631103,6.4771,154.39,154.32,6.4798]
[1729105631417,4.80862352,154.38,154.32,6.4798]
[1729105631617,6.4771,154.39,154.32,6.4798]
[1729105631914,4.80834856,154.38,154.32,6.4798]
[1729105632088,6.4772,154.39,154.32,26.4797]
[1729105632391,4.80858009,154.38,154.32,26.4797]
[1729105632595,6.4772,154.39,154.32,26.4797]
[1729105632796,4.80823255,154.38,154.32,26.4797]
[1729105632999,6.4772,154.39,154.32,26.4797]
[1729105633203,4.80825119,154.38,154.32,26.4797]
[1729105633393,6.4772,154.39,154.32,26.4797]
[1729105633593,4.80898181,154.38,154.32,26.4797]
[1729105633892,6.4772,154.39,154.32,26.4797]
[1729105634101,4.80897401,154.38,154.32,26.4797]
[1729105634304,6.4772,154.39,154.32,26.4797]
[1729105634499,4.80920377,154.38,154.32,26.4797]
[1729105634721,6.4772,154.39,154.32,26.4797]
[1729105634917,4.80924385,154.38,154.32,26.4797]
[1729105635239,6.4772,154.39,154.32,26.4797]
[1729105635422,4.8091377,154.38,154.32,26.4797]
[1729105635724,6.4772,154.39,154.32,26.4797]
[1729105635900,4.80875819,154.38,154.32,26.4797]
[1729105636219,6.4772,154.39,154.32,26.4797]
[1729105636513,4.80832873,154.38,154.32,26.4797]
[1729105636695,6.4772,154.39,154.32,26.4797]
[1729105636897,4.80834573,154.38,154.32,26.4797]
[1729105637317,6.4772,154.39,154.32,26.4797]
[1729105637624,8.01662752,154.42,154.32,26.4797]
[1729105637625,4.80808645,154.38,154.33,6.4792]
[1729105637806,6.4769,154.4,154.33,6.4792]
[1729105638006,4.80796894,154.39,154.33,6.4792]
[1729105638200,4.80796894,154.38,154.33,6.4792]
[1729105638407,6.4769,154.4,154.33,6.4792]
[1729105638616,4.80767587,154.39,154.33,6.4792]
[1729105638918,4.80767587,154.38,154.33,6.4792]
[1729105639214,6.4769,154.4,154.34,6.4791]
[1729105641722,6.4763,154.41,154.34,6.4791]
[1729105642018,6.4759,154.42,154.34,20.0]
[1729105642197,4.80834564,154.41,154.36,6.4781]
[1729105642526,29.388,154.43,154.36,6.4781]
[1729105642747,4.80751362,154.42,154.37,6.4779]
[1729105642942,23.0496,154.43,154.37,6.4779]
[1729105643214,4.80802944,154.42,154.37,6.4777]
[1729105643411,6.475,154.44,154.37,6.4777]
[1729105643618,4.80674106,154.43,154.37,6.4777]
[1729105643826,6.475,154.44,154.37,6.4777]
[1729105644111,4.80669791,154.43,154.37,6.4777]
[1729105644327,6.475,154.44,154.37,6.4777]
[1729105644489,4.80553092,154.43,154.37,6.4777]
[1729105644689,6.475,154.44,154.37,6.4777]
[1729105644905,4.80553922,154.43,154.37,6.4777]
[1729105645110,6.475,154.44,154.37,6.4777]
[1729105645613,6.475,154.44,154.36,0.1]
[1729105645801,6.475,154.44,154.38,6.4774]
[1729105650709,6.475,154.44,154.37,6.4778]
[1729105658225,4.80809257,154.43,154.37,6.4778]
[1729105658428,6.475,154.44,154.37,6.4778]
[1729105658739,4.80803678,154.43,154.37,6.4778]
[1729105658941,6.475,154.44,154.37,6.4778]
[1729105659235,4.80838753,154.43,154.37,6.4778]
[1729105659434,46.5210491,154.47,154.37,6.4778]
[1729105659656,6.4754,154.43,154.37,6.4778]
[1729105660250,30.3361491,154.47,154.34,36.5057]
[1729105660534,6.4767,154.4,154.34,42.9846]
[1729105662244,16.2927,154.42,154.31,12.95537715]
[1729105662447,18.77842034,154.41,154.31,12.95537715]
[1729105662646,18.77842034,154.41,154.3,16.1823]
[1729105662647,4.80642491,154.4,154.3,16.1823]
[1729105662822,6.2818,154.41,154.3,16.1823]
[1729105662823,6.479,154.35,154.3,16.1823]
[1729105663156,6.4772,154.39,154.33,6.4795]
[1729105663325,6.4768,154.4,154.34,6.4791]
[1729105667362,6.4775,154.38,154.32,26.4798]
[1729105674740,6.4775,154.38,154.31,26.4803]
[1729105674937,24.30764684,154.42,154.31,26.4803]
[1729105675258,6.4779,154.37,154.31,26.4803]
[1729105677061,8.01494684,154.41,154.31,26.4803]
[1729105677062,6.4776,154.38,154.33,20.0]
[1729105680158,24.31504151,154.42,154.33,20.0]
[1729105680459,6.4773,154.39,154.33,6.4796]
[1729105681238,4.81317229,154.38,154.33,6.4796]
[1729105681539,6.4773,154.39,154.33,6.4796]
[1729105681740,4.81124816,154.38,154.33,6.4796]
[1729105681934,6.4773,154.39,154.33,6.4796]
[1729105682148,4.81118527,154.38,154.33,6.4796]
[1729105682461,6.4773,154.39,154.33,6.4796]
[1729105682661,4.80951286,154.38,154.33,6.4796]
[1729105682847,6.4773,154.39,154.33,6.4796]
[1729105683047,4.80891228,154.38,154.33,6.4796]
[1729105683251,6.1609,154.41,154.3,16.1823]
[1729105683455,16.193,154.39,154.3,16.1823]
[1729105683638,6.4783,154.37,154.3,22.663]
[1729105683959,11.28787662,154.36,154.3,22.663]
[1729105684161,6.4784,154.36,154.3,22.663]
[1729105684539,6.4784,154.36,154.31,20.0]
[1729105687369,6.4775,154.38,154.32,6.4798]
[1729105687663,4.80394987,154.37,154.32,6.4798]
[1729105687840,6.4775,154.38,154.32,6.4798]
[1729105688168,4.80403432,154.37,154.33,6.4793]
[1729105688456,6.4776,154.38,154.32,6.4798]
[1729105688665,4.80366674,154.37,154.33,20.0]
[1729105688858,6.4776,154.38,154.33,20.0]
[1729105689066,4.80365167,154.37,154.33,20.0]
[1729105689368,6.4776,154.38,154.33,20.0]
[1729105689547,8.00603438,154.41,154.36,6.4782]
[1729105689747,4.80431009,154.4,154.37,20.0]
[1729105689969,6.4761,154.42,154.37,20.0]
[1729105690262,12.49564911,154.41,154.37,20.0]
[1729105690457,4.80601889,154.4,154.37,20.0]
[1729105690666,6.4761,154.42,154.37,20.0]
[1729105690856,4.80648519,154.41,154.37,20.0]
[1729105691054,4.80648519,154.4,154.39,6.4771]
[1729105691252,6.4743,154.46,154.4,6.4765]
[1729105691460,12.49742101,154.45,154.4,6.4765]
[1729105691668,14.60373438,154.49,154.41,20.0]
[1729105691866,18.97120254,154.48,154.42,6.4758]
[1729105692047,4.80677021,154.47,154.41,20.0]
[1729105692364,4.80677021,154.47,154.41,6.4759]
[1729105693150,6.4736,154.48,154.41,6.4759]
[1729105693558,4.80634699,154.47,154.41,6.4759]
[1729105693765,9.61225108,154.47,154.41,6.4759]
[1729105693957,4.80634699,154.47,154.41,6.4759]
[1729105694266,4.80634699,154.47,154.42,20.0]
[1729105695073,4.80634699,154.47,154.42,6.4757]
[1729105695447,4.80634699,154.47,154.43,6.4753]
[1729105695950,4.80634699,154.47,154.42,20.0]
[1729105696156,4.80634699,154.47,154.42,6.4757]
[1729105696357,4.80634699,154.47,154.43,6.4753]
[1729105696558,4.80634699,154.47,154.41,26.4761]
[1729105697162,4.80634699,154.47,154.43,6.4754]
[1729105697873,4.80634699,154.47,154.41,20.0]
[1729105698049,4.80634699,154.47,154.4,39.647584]
[1729105698050,4.80634699,154.47,154.43,20.0]
[1729105698754,4.80634699,154.47,154.41,20.0]
[1729105700779,4.80634699,154.47,154.41,26.4761]
[1729105700950,6.473,154.49,154.41,26.4761]
[1729105701152,23.115,154.5,154.43,20.0]
[1729105701369,6.473,154.49,154.43,20.0]
[1729105702060,6.473,154.49,154.41,26.4762]
[1729105702757,6.4734,154.48,154.41,20.0]
[1729105707875,16.6425,154.5,154.41,20.0]
[1729105708094,6.4735,154.48,154.41,20.0]
[1729105708469,6.4725,154.5,154.43,20.0]
[1729105708673,16.1793,154.52,154.43,20.0]
[1729105709074,6.4734,154.48,154.41,20.0]
[1729105709663,6.4738,154.47,154.41,20.0]
[1729105710362,16.1793,154.52,154.42,23.876884]
[1729105710564,6.4729,154.49,154.43,20.0]
[1729105710977,6.4735,154.48,154.43,20.0]
[1729105711665,6.4738,154.47,154.41,20.0]
[1729105714066,16.1793,154.52,154.41,20.0]
[1729105714390,6.4742,154.46,154.41,20.0]
[1729105715078,6.4745,154.46,154.41,20.0]
[1729105715264,16.1842,154.48,154.41,20.0]
[1729105715461,6.4753,154.44,154.41,20.0]
[1729105715876,6.4753,154.44,154.4,15.7707]
[1729105716180,15.8358,154.49,154.38,6.2694]
[1729105716371,6.4761,154.42,154.38,6.2694]
[1729105716974,16.1861,154.46,154.38,6.2694]
[1729105717199,6.4756,154.43,154.39,20.0]
[1729105717865,6.4759,154.42,154.39,20.0]
[1729105723079,6.4762,154.41,154.38,20.0]
[1729105723696,6.477,154.4,154.38,20.0]
[1729105723871,6.477,154.4,154.37,20.0]
[1729105724488,6.4762,154.42,154.37,20.0]
[1729105724695,6.4763,154.41,154.37,20.0]
[1729105730598,6.4758,154.42,154.37,20.0]
[1729105732082,16.1852,154.47,154.37,26.4777]
[1729105732281,16.1852,154.47,154.39,20.0]
[1729105733204,6.4747,154.45,154.39,20.0]
[1729105733504,6.6078,154.48,154.39,20.0]
[1729105733688,6.4742,154.46,154.39,26.4767]
[1729105734003,6.4742,154.46,154.39,26.5767]
[1729105734209,6.4742,154.46,154.41,20.0]
[1729105736104,15.8358,154.49,154.41,20.0]
[1729105736105,6.4741,154.47,154.41,20.0]
[1729105736687,16.1815,154.5,154.43,26.475]
[1729105736688,6.4726,154.5,154.43,26.475]
[1729105737004,33.23762658,154.53,154.45,17.97799075]
[1729105737005,6.472,154.51,154.45,17.97799075]
[1729105737212,17.05882658,154.53,154.43,20.0]
[1729105737388,17.05882658,154.53,154.45,20.0]
[1729105737389,6.4725,154.5,154.45,20.0]
[1729105737587,6.4729,154.49,154.45,20.0]
[1729105738703,6.4725,154.5,154.46,32.02550751]
[1729105738911,6.4725,154.5,154.45,51.22550751]
[1729105739207,6.4725,154.5,154.45,20.0]
[1729105742607,16.1798,154.52,154.42,20.0]
[1729105742789,6.4742,154.46,154.42,20.0]
[1729105742989,6.4747,154.45,154.42,20.0]
[1729105744090,6.4742,154.46,154.42,20.0]
[1729105745985,6.4741,154.47,154.42,20.0]
[1729105746493,6.4734,154.48,154.43,11.50349075]
[1729105747310,6.4734,154.48,154.44,31.22550751]
[1729105747690,6.4734,154.48,154.43,11.50349075]
[1729105748599,6.4734,154.48,154.42,20.0]
[1729105749587,6.6653,154.52,154.43,23.776884]
[1729105749785,6.473,154.49,154.44,20.0]
[1729105749986,6.6653,154.52,154.44,20.0]
[1729105750209,6.4726,154.5,154.44,26.4749]
[1729105752205,6.472,154.52,154.45,41.75467475]
[1729105752420,6.472,154.52,154.46,26.4741]
[1729105752790,6.4712,154.54,154.48,20.0]
[1729105753315,6.4713,154.53,154.48,20.0]
[1729105755902,6.4713,154.53,154.49,31.22550751]
[1729105756102,6.4713,154.53,154.48,20.0]
[1729105756317,6.4713,154.53,154.49,31.22550751]
[1729105756496,6.4713,154.53,154.48,20.0]
[1729105757828,6.4713,154.53,154.49,31.22550751]
[1729105758619,6.4713,154.53,154.48,20.0]
[1729105759101,6.4713,154.53,154.49,31.22550751]
[1729105759300,6.4713,154.53,154.48,20.0]
[1729105760701,6.4713,154.53,154.49,31.22550751]
[1729105761021,6.4713,154.53,154.48,20.0]
[1729105761220,6.4713,154.53,154.49,31.22550751]
[1729105761401,6.4713,154.53,154.48,20.0]
[1729105761603,6.4713,154.53,154.49,31.22550751]
[1729105761907,6.4713,154.53,154.48,20.0]
[1729105763120,6.4713,154.53,154.49,31.22550751]
[1729105763603,6.4713,154.53,154.5,31.22550751]
[1729105763804,6.4713,154.53,154.48,20.0]
[1729105764820,6.4713,154.53,154.49,31.22550751]
[1729105765197,6.4713,154.53,154.48,20.0]
[1729105765617,6.4713,154.53,154.49,31.22550751]
[1729105765803,6.4713,154.53,154.48,20.0]
[1729105770006,6.4713,154.53,154.48,26.4733]
[1729105770605,6.4709,154.54,154.48,26.4733]
[1729105770805,6.4709,154.54,154.48,57.69880751]
[1729105771027,6.4709,154.54,154.48,26.4733]
[1729105771522,6.4709,154.54,154.49,31.22550751]
[1729105771725,6.4709,154.54,154.48,26.4733]
[1729105773932,6.4709,154.54,154.49,31.22550751]
[1729105774119,6.4709,154.54,154.48,26.4733]
[1729105776416,6.4713,154.53,154.49,30.42550751]
[1729105776625,6.4713,154.53,154.5,30.42550751]
[1729105776824,6.472,154.52,154.48,20.0]
[1729105777022,22.3554,154.56,154.47,20.0]
[1729105777023,6.4723,154.51,154.47,20.0]
[1729105778034,6.4723,154.51,154.46,20.0]
[1729105778406,22.3554,154.56,154.46,26.4741]
[1729105778636,6.4717,154.52,154.46,26.4741]
[1729105779024,6.4717,154.52,154.48,20.0]
[1729105779209,6.4715,154.53,154.48,20.0]
[1729105779617,6.4719,154.52,154.48,20.0]
[1729105779918,6.4719,154.52,154.47,20.0]
[1729105780830,6.4719,154.52,154.48,30.42550751]
[1729105781138,6.4719,154.52,154.47,20.0]
[1729105781730,6.4719,154.52,154.48,30.42550751]
[1729105782042,6.4719,154.52,154.47,20.0]
[1729105782934,6.4719,154.52,154.47,26.4736]
[1729105784436,6.4719,154.52,154.48,29.62550751]
[1729105784641,6.4719,154.52,154.47,26.4736]
[1729105786041,22.3554,154.56,154.47,26.4736]
[1729105786341,6.4713,154.53,154.47,26.4736]
[1729105787142,6.4718,154.52,154.46,26.474]
[1729105787914,6.4718,154.52,154.46,20.0]
[1729105788219,6.4718,154.52,154.48,20.0]
[1729105789729,6.4718,154.52,154.49,29.62550751]
[1729105789941,6.4718,154.52,154.48,49.62550751]
[1729105790236,6.4718,154.52,154.48,20.0]
[1729105792024,6.4718,154.52,154.49,29.62550751]
[1729105792224,6.4718,154.52,154.48,20.0]
[1729105793543,6.4711,154.54,154.48,26.4731]
[1729105794025,6.4712,154.53,154.48,26.4731]
[1729105794744,22.3554,154.56,154.46,20.0]
[1729105795041,6.4716,154.52,154.46,26.4738]
[1729105796725,6.4713,154.53,154.47,6.4735]
[1729105797229,6.4713,154.53,154.48,20.0]
[1729105797741,22.3554,154.56,154.48,20.0]
[1729105798051,6.4711,154.54,154.48,26.4731]
[1729105798229,4.82109312,154.53,154.48,26.4731]
[1729105798551,6.4711,154.54,154.48,26.4731]
[1729105798719,4.82110959,154.53,154.48,26.4731]
[1729105798923,6.4711,154.54,154.48,26.4731]
[1729105799242,4.82115035,154.53,154.48,26.4731]
[1729105799439,4.82115035,154.53,154.49,28.82550751]
[1729105799440,6.4712,154.53,154.49,28.82550751]
[1729105799642,6.4712,154.53,154.48,26.4731]
[1729105804736,6.1797,154.56,154.48,26.4731]
[1729105804941,6.4711,154.54,154.48,26.4731]
[1729105805559,6.47,154.56,154.5,6.4721]